Cogmind - Beta 9.6 @@@ ROGUE MODE // 2020.06.03 @ 18:34:50 // AFD2020/Player2 Player: CreepyD Result: Core destroyed Performance ------------- Evolutions (7) 3500 Regions Visited (16) 3200 Robots Destroyed (109) 545 Value Destroyed (4465) 4465 Prototype IDs (9) 180 Alien Tech Used (0) 0 Bonus (4343) 4343 TOTAL SCORE: 16233 Bonus ------- High Alert Combat Kills 587 Follower Combat Kills 3423 Met Warlord at Base 500 MAIN.C Attacked Warlord 500 Warlord Defense Kill 234 Friendly Fire -901 Cogmind --------- Core Integrity 0/1300 Matter 134/300 Energy 170/170 System Corruption 0% Temperature Cool (0) Movement Core (700) Ox13 Location -3/Research Parts ------- > --- POWER (4) -------- Micro Fission Core > --- PROPULSION (3) --- (None) > --- UTILITY (9) ------ Advanced Heat Sink Improved Coolant Injector High-capacity Storage Unit Advanced Target Analyzer Weapon Cycler Transmission Jammer EM Shield > --- WEAPON (5) ------- (None) > --- INVENTORY (12) --- Medium Treads Experimental Power Amplifier High-capacity Matter Pod (200) Advanced Sensor Array Advanced Target Analyzer Advanced Dynamic Insulation System Recalibrator High-powered Shotgun Peak State ------------ > --- POWER ------------ Antimatter Reactor Light Antimatter Reactor Light Antimatter Reactor Light Particle Reactor > --- PROPULSION ------- Medium Treads Advanced Heavy Treads > --- UTILITY ---------- Advanced Heat Sink Advanced Heat Sink Improved Coolant Injector High-capacity Storage Unit 0b10 Decoder Chip [Generic] Advanced Target Analyzer Weapon Cycler EM Shield Advanced Dynamic Insulation System > --- WEAPON ----------- Gamma Rifle Dispersion Rifle Coil Gun Heavy Machine Gun Heavy Machine Gun > --- INVENTORY -------- Micro Fission Core Medium Treads Wheel Advanced Heat Sink High-capacity Matter Pod Advanced Sensor Array Advanced Target Analyzer Transmission Jammer Recalibrator Gamma Rifle Gamma Rifle [Rating: 131] Favorites ----------- Power Deuterium Engine Engine Deuterium Engine Power Core Micro Fission Core Reactor Light Antimatter Reactor Propulsion Compact Wheel Treads Advanced Heavy Treads Leg Flexi-carbon Leg Wheel Compact Wheel Utility Advanced Heat Sink Device Advanced Heat Sink Storage High-capacity Storage Unit Processor Advanced Target Analyzer Hackware Improved System Shield Protection Improved Propulsion Shielding Weapon Railgun Energy Gun Plasma Storm Energy Cannon Heavy Phase Cannon Ballistic Gun Railgun Ballistic Cannon Enhanced Gauss Cannon Launcher Rocket Launcher Special Weapon Molecular Deconstructor Slashing Weapon Power Sword Build | -11 -10 -10 -9 -9 -8 -7 -6 -5 -5 -5 -5 -4 -4 -4 -4 -3 ------- Run | Scr Mat Min Mat Min Mat Fac Fac Fac Upp Upp War Pro Fac Upp Upp Res Slots Evolved 14 | . . . 2 . 2 2 2 2 . . . . 2 . . 2 Power 3 | . . . . . . 1 . 1 . . . . . . . 1 Propulsion 1 | . . . . . . . . . . . . . . . . 1 Utility 7 | . . . 2 . 1 1 2 1 . . . . . . . . Weapon 3 | . . . . . 1 . . . . . . . 2 . . . Parts Attached 170 | 7 . 3 6 1 6 18 9 7 6 . 7 16 22 8 3 51 Power 31 | 1 . 1 1 . . 2 2 1 1 . 2 . 6 3 1 10 Engine 18 | 1 . . 1 . . 2 2 1 1 . 2 . 6 . . 2 Core 3 | . . 1 . . . . . . . . . . . . . 2 Reactor 10 | . . . . . . . . . . . . . . 3 1 6 Propulsion 27 | 2 . . . . 1 3 . . . . . 3 5 1 . 12 Treads 5 | . . . . . . . . . . . . . . . . 5 Leg 4 | . . . . . . . . . . . . 3 . . . 1 Wheel 18 | 2 . . . . 1 3 . . . . . . 5 1 . 6 Hover . | . . . . . . . . . . . . . . . . . Flight . | . . . . . . . . . . . . . . . . . Utility 53 | 2 . . 5 1 3 4 7 3 2 . 2 6 4 2 1 11 Device 36 | 1 . . 2 . 2 2 6 1 . . 1 4 4 1 1 11 Storage 3 | . . . 2 1 . . . . . . . . . . . . Processor 6 | 1 . . . . . 1 1 . 1 . . 1 . 1 . . Hackware 1 | . . . . . . . . . 1 . . . . . . . Protection 7 | . . . 1 . 1 1 . 2 . . 1 1 . . . . Artifact . | . . . . . . . . . . . . . . . . . Weapon 59 | 2 . 2 . . 2 9 . 3 3 . 3 7 7 2 1 18 Energy Gun 20 | 2 . 1 . . 1 1 . 1 . . . 3 2 1 . 8 Energy Cannon 9 | . . . . . . 5 . . . . 2 . 1 . . 1 Ballistic Gun 18 | . . . . . . 2 . 1 2 . . 1 1 1 1 9 Ballistic Cannon 5 | . . . . . . . . 1 1 . . 1 2 . . . Launcher 2 | . . 1 . . 1 . . . . . . . . . . . Special Weapon 4 | . . . . . . 1 . . . . 1 1 1 . . . Impact Weapon . | . . . . . . . . . . . . . . . . . Slashing Weapon 1 | . . . . . . . . . . . . 1 . . . . Piercing Weapon . | . . . . . . . . . . . . . . . . . Special Melee Weapon . | . . . . . . . . . . . . . . . . . Unidentified Prototypes 9 | . . . . . . 2 . . . . 1 1 2 . . 3 Parts Lost 67 | . . . . . 1 . 3 1 4 1 . 10 7 3 1 36 Power 19 | . . . . . . . 1 . 1 1 . 3 3 1 . 9 Propulsion 9 | . . . . . . . . . . . . . 1 . . 8 Utility 12 | . . . . . . . 1 . 2 . . 3 3 1 . 2 Weapon 27 | . . . . . 1 . 1 1 1 . . 4 . 1 1 17 Highest Loss Streak 18 | . . . . . 1 . 2 1 2 1 . 4 7 2 1 18 Average Slot Usage (%) 87 | . 100 100 95 99 97 96 85 93 90 91 93 80 69 89 98 79 Engine 9 | . 14 6 9 11 9 15 12 17 15 14 16 4 5 8 4 2 Reactor 2 | . . . . . . . . . . . . . . 3 10 10 Leg 1 | . . . . . . . . . . . . 6 3 . . . Wheel 7 | . 28 28 22 22 18 13 6 5 5 5 5 1 5 10 10 3 Device 24 | . 14 14 21 11 18 14 30 35 32 29 29 27 22 23 26 24 Storage 5 | . . . 6 21 12 7 6 5 5 5 5 5 5 5 5 4 Processor 7 | . 14 14 3 . . 4 8 . . 5 5 8 10 14 15 12 Hackware 2 | . . . . . . . . . 3 5 5 5 5 . . . Protection 5 | . . . 9 11 14 16 6 11 6 5 5 2 2 . . . Energy Gun 3 | . 28 24 11 11 13 2 . 2 3 . . 1 1 . 3 4 Energy Cannon 3 | . . . . . . 14 14 3 . . 4 1 1 5 5 . Ballistic Gun 3 | . . . . . . 2 . 3 3 5 5 4 . 4 5 6 Ballistic Cannon 3 | . . . . . . . . 4 8 11 5 2 1 10 10 . Launcher 1 | . . 3 11 11 10 2 . . . . . . . . . . Naked Turns . | . . . . . . . . . . . . . . . . . Heaviest Build 124 | 10 10 13 53 55 58 80 78 101 97 88 97 97 89 109 114 124 Greatest Support 98 | 32 32 32 32 32 32 28 28 28 28 28 28 40 40 32 32 98 Greatest Overweight (x) 25 | . . . 1 1 1 25 2 3 3 3 3 3 2 3 3 13 Average Overweight (x) 1 | . . . . 1 1 2 2 3 2 2 2 1 1 2 3 1 Largest Inventory Capacity 12 | 4 4 4 12 12 12 12 12 12 12 12 12 12 12 12 12 12 Average Capacity 11 | 4 4 4 6 12 12 12 12 12 12 12 12 12 12 12 12 12 Most Carried 12 | 4 3 2 5 5 5 12 10 9 8 9 12 12 12 12 12 12 Average Carried 8 | 3 . . 2 4 3 6 7 7 7 8 9 11 9 11 11 9 Final Capacity 12 | 4 4 4 12 12 12 12 12 12 12 12 12 12 12 12 12 12 Final Carried 12 | 4 . 1 4 5 4 10 9 7 7 9 12 11 12 11 12 8 Class Distribution -------------------- 31% | Scavenger-Gunner 19% | Tank 18% | Mutant 9% | Scavenger-Mutant 7% | Commander-Tank 4% | Scavenger-Tank 4% | Generator-Gunner 3% | Gunner Dominant Class ---------------- Mutant | -10/Materials Scavenger-Mutant | -10/Mines Mutant | -9/Materials Mutant | -9/Mines Mutant | -8/Materials Tank | -7/Factory Mutant | -6/Factory Scavenger-Tank | -5/Factory Tank | -5/Upper Caves Tank | -5/Upper Caves Commander-Tank | -5/Warlord Scavenger-Gunner | -4/Proximity Caves Scavenger-Gunner | -4/Factory Scavenger-Gunner | -4/Upper Caves Scavenger-Gunner | -4/Upper Caves Scavenger-Gunner | -3/Research Resources | -11 -10 -10 -9 -9 -8 -7 -6 -5 -5 -5 -5 -4 -4 -4 -4 -3 ----------- Run | Scr Mat Min Mat Min Mat Fac Fac Fac Upp Upp War Pro Fac Upp Upp Res Matter Collected 3789 | 270 . 28 50 158 179 266 75 102 286 101 345 449 216 287 76 901 Remotely . | . . . . . . . . . . . . . . . . . Salvage Created 4871 | 266 13 8 54 26 86 499 151 100 285 130 110 827 219 297 72 1728 Parts 265 | 18 3 3 1 10 1 29 8 7 14 4 4 25 18 10 1 109 Haulers Intercepted 4 | . . . . . 1 2 . . . . . . 1 . . . Recyclers Shooed 3 | . . . . . . . . . . . . . 1 . . 2 Parts Field Recycled . | . . . . . . . . . . . . . . . . . Retrieved Matter . | . . . . . . . . . . . . . . . . . Parts Self-Destructed 165 | . . . . . . . . . 17 6 70 47 . 22 3 . Prevented 13 | . . . . . . . . . . 3 10 . . . . . Kills | -11 -10 -10 -9 -9 -8 -7 -6 -5 -5 -5 -5 -4 -4 -4 -4 -3 ------- Run | Scr Mat Min Mat Min Mat Fac Fac Fac Upp Upp War Pro Fac Upp Upp Res Combat Hostiles Destroyed 73 | . 1 3 . 6 1 4 3 1 7 2 2 11 1 6 1 24 Melee 1 | . . . . . . . . . . . . 1 . . . . Guns 37 | . . . . . . 1 . . 5 . . 6 . 3 . 22 Cannons 20 | . . . . . . 2 3 1 2 2 2 4 . 3 1 . AOE 14 | . 1 3 . 6 1 1 . . . . . . . . . 2 Classes Destroyed 18 | 3 1 . 1 . 2 4 1 1 1 1 . 2 . 1 . . Worker 4 | 2 . . . . . . . . . . . . 1 . . 1 Builder 9 | . . . . . . 1 . . . . . . . . . 8 Tunneler 8 | 5 . . . . . 1 . . . . . . 2 . . . Hauler 4 | . . . . . 1 2 . . . . . . 1 . . . Recycler 4 | 1 . . 1 . . 1 . . . . . . . . . 1 Operator 1 | . . . . . . . . 1 . . . . . . . . Watcher 3 | . . . 1 . . . . . . . . . 2 . . . Swarmer 27 | . 1 3 . 6 . . 1 . 3 . . 1 . 2 . 10 Grunt 16 | . . . . . . 1 1 . 2 . 2 3 . 1 . 6 Brawler 3 | . . . . . . . 1 . . . . . . 1 . 1 Duelist 1 | . . . . . . . . . . . . . . 1 . . Protector 1 | . . . . . . . . . . . . 1 . . . . Sentry 5 | . . . . . . 2 . 1 . 1 . 1 . . . . Specialist 2 | . . . . . . . . . . . . 2 . . . . Hunter 12 | . . . . . 1 1 . . 2 . . 3 1 1 1 2 Programmer 5 | . . . . . . 1 . . . . . . . . . 4 Behemoth 3 | . . . . . . . . . 1 . . 1 . . . 1 Mutant 1 | . . . . . . . . . . 1 . . . . . . Best Kill Streak 7 | 5 1 3 2 3 1 3 2 1 4 1 2 3 1 4 1 7 Combat Bots Only 5 | . 1 3 . 3 1 1 2 1 4 1 2 3 1 4 1 5 Max Kills in Single Turn 3 | 1 1 3 1 3 1 1 1 1 1 1 1 1 1 2 1 3 Gunslinging 1 | . . . . . . . . . . . . . . . . 1 Exploded 3 | . 1 3 . 3 1 1 . . . . . . . . . 2 Melee 1 | . . . . . . . . . . . . 1 . . . . Uniques/NPCs Destroyed . | . . . . . . . . . . . . . . . . . Combat | -11 -10 -10 -9 -9 -8 -7 -6 -5 -5 -5 -5 -4 -4 -4 -4 -3 -------- Run | Scr Mat Min Mat Min Mat Fac Fac Fac Upp Upp War Pro Fac Upp Upp Res Damage Taken 9712 | . 54 64 4 74 48 340 457 223 818 214 173 1276 588 676 193 4510 Core 1248 | . 6 8 . 18 . 58 57 . 161 33 . 194 82 86 16 529 Absorbed by Shields 610 | . . . . . . . . . . . 167 443 . . . . Core Remaining (%) 82 | 100 . 82 . 95 97 89 91 . . . . 23 . . 81 . Volleys Fired 316 | 23 6 10 5 4 8 30 17 4 26 12 20 45 17 14 4 71 Largest 5 | 2 1 2 2 2 2 3 3 3 3 3 3 3 3 4 5 5 Hottest 331 | 90 40 98 98 98 105 245 214 182 330 140 190 190 300 256 331 300 Shots Fired 792 | 37 6 13 8 5 14 70 35 10 76 34 40 95 19 51 19 260 Gun 459 | 37 6 8 4 1 12 15 . 2 40 12 10 48 11 11 7 235 Cannon 294 | . . . . . . 44 35 8 36 22 20 47 6 39 12 25 Launcher 17 | . . 5 4 4 2 2 . . . . . . . . . . Special 22 | . . . . . . 9 . . . . 10 . 2 1 . . Kinetic 419 | . . . . . . 11 . 6 54 34 20 67 11 37 12 167 Thermal 229 | 14 . 3 4 1 4 45 19 2 22 . 20 28 6 13 7 41 Explosive 17 | . . 5 4 4 2 2 . . . . . . . . . . Electromagnetic 124 | 23 6 5 . . 8 12 16 2 . . . . . . . 52 Robot Hit Streak 18 | 18 . 3 3 . 3 8 6 6 7 7 11 13 6 11 14 18 Robot Miss Streak 6 | 1 6 1 1 4 1 4 3 1 6 4 2 6 2 5 4 6 Penetration Max 1 | . . . . . . . . . 1 . . . 1 1 . 1 Secondary Targets 8 | . . . . . . . . . . . . . . . . 8 Max Gunslinging Chain 1 | . . . . . . . . . . . . . . . . 1 Shots Hit Robots 449 | 29 . 5 5 . 8 35 24 7 39 17 19 58 14 30 6 153 Core Hits 209 | 9 1 3 3 6 3 20 5 4 13 3 7 23 12 13 4 80 Critical Hits 34 | . . . . . . . 1 . 5 2 4 4 1 2 . 15 Critical Kills 15 | . . . . . . . . . 2 1 1 1 1 1 . 8 Critical Parts Destroyed 17 | . . . . . . . 1 . 3 1 3 1 . 1 . 7 Melee Attacks 7 | . . . . . . . . . . . . 7 . . . . Impact . | . . . . . . . . . . . . . . . . . Slashing 7 | . . . . . . . . . . . . 7 . . . . Piercing . | . . . . . . . . . . . . . . . . . Sneak Attacks . | . . . . . . . . . . . . . . . . . Combat Hostiles . | . . . . . . . . . . . . . . . . . Follow-up Attacks . | . . . . . . . . . . . . . . . . . Damage Inflicted 14115 | 462 51 237 216 414 204 1040 603 185 1135 450 658 1652 884 1006 144 4774 Guns 6112 | 394 12 47 18 . 108 197 . 24 469 103 185 653 197 179 58 3468 Cannons 5049 | . . . . . . 628 603 161 666 347 473 719 135 827 86 404 Explosions 2575 | 68 39 190 190 414 96 215 . . . . . . 543 . . 820 Melee 251 | . . . . . . . . . . . . 251 . . . . Ramming 128 | . . . 8 . . . . . . . . 29 9 . . 82 Kinetic 6560 | . . . . . . 159 . 107 960 450 462 997 215 656 38 2516 Thermal 4419 | 166 39 13 18 . 59 611 361 54 175 . 196 375 349 350 106 1547 Explosive 1266 | . . 190 190 414 96 65 . . . . . . 311 . . . Electromagnetic 1491 | 296 12 34 . . 49 205 242 24 . . . . . . . 629 Impact . | . . . . . . . . . . . . . . . . . Slashing 251 | . . . . . . . . . . . . 251 . . . . Piercing . | . . . . . . . . . . . . . . . . . Highest Corruption 2 | . . . . . . 2 2 . . . . . 1 1 1 . Average Corruption 1 | . . . . . . 1 2 . . . . . 1 1 1 . Corruption Purged . | . . . . . . . . . . . . . . . . . Effects 6 | . . . . . . 1 . . . . . . 3 2 . . Message Errors 3 | . . . . . . . . . . . . . 2 1 . . Heat Flow Errors 1 | . . . . . . 1 . . . . . . . . . . Energy Discharges 1 | . . . . . . . . . . . . . 1 . . . Data Loss (minor) 1 | . . . . . . . . . . . . . . 1 . . Overload Shots 2 | . . . . . . . . . 2 . . . . . . . Overflow Damage 141 | 14 . . 4 36 . 15 . . . 11 7 . . 20 . 34 Projectiles 53 | . . . . . . . . . . 11 7 . . 20 . 15 Explosions 88 | 14 . . 4 36 . 15 . . . . . . . . . 19 Melee . | . . . . . . . . . . . . . . . . . Knockbacks 16 | . . . . . . . . . 1 1 4 4 . 5 . 1 Impact . | . . . . . . . . . . . . . . . . . Kinetic 16 | . . . . . . . . . 1 1 4 4 . 5 . 1 Secondary . | . . . . . . . . . . . . . . . . . Self-Inflicted Damage 76 | . . 14 4 . . . . . . . . 3 4 . . 51 Shots 3 | . . 1 . . . . . . . . . . . . . 2 Rammed 13 | . . . 1 . . . . . . . . 1 1 . . 10 Targets Rammed 18 | . . . 1 . . . . . . . . 6 1 . . 10 Kicked 5 | . . . . . . . . . . . . 5 . . . . Crushed . | . . . . . . . . . . . . . . . . . Highest Temperature 675 | 210 20 54 58 30 90 410 184 153 547 174 510 310 318 444 526 675 Average Temperature 123 | 89 20 29 29 17 39 118 73 84 106 74 220 76 101 154 278 158 Received Heat Transfer 804 | . . . . . . 72 24 30 129 . 58 149 . 120 . 222 Effects 40 | 1 . . . . . 5 . . 3 . 6 . . 3 3 19 Shutdowns 21 | . . . . . . 2 . . 2 . 4 . . . 1 12 Energy Bleed 4 | . . . . . . 2 . . . . . . . . . 2 Interference 5 | 1 . . . . . . . . . . . . . 2 . 2 Matter Decay 2 | . . . . . . . . . . . . . . 1 . 1 Short Circuit 3 | . . . . . . 1 . . . . . . . . 1 1 Damage (minor) 2 | . . . . . . . . . 1 . . . . . 1 . Damage (major) 2 | . . . . . . . . . . . 2 . . . . . Damage (core) 1 | . . . . . . . . . . . . . . . . 1 Siege Activations . | . . . . . . . . . . . . . . . . . Robots Corrupted . | . . . . . . . . . . . . . . . . . Combat Hostiles . | . . . . . . . . . . . . . . . . . Parts Fried 3 | . . . . . . 1 . . . . . . . . . 2 Impact Corruptions 1 | . . . . . . . . . . . . . . . . 1 Robots Melted . | . . . . . . . . . . . . . . . . . Combat Hostiles . | . . . . . . . . . . . . . . . . . Parts Melted 5 | . . . . . 1 . . . . . . 1 . . . 3 Heat Transferred 6530 | 396 . 37 37 . 148 870 507 74 259 . 204 481 585 500 174 2258 Parts Sabotaged 1 | . . . . . . . . . . . . . . . . 1 Parts Stolen . | . . . . . . . . . . . . . . . . . Parts Stripped . | . . . . . . . . . . . . . . . . . Power Chain Reactions 6 | 2 1 . . . . 3 . . . . . . . . . . Missiles Intercepted . | . . . . . . . . . . . . . . . . . Alert | -11 -10 -10 -9 -9 -8 -7 -6 -5 -5 -5 -5 -4 -4 -4 -4 -3 ------- Run | Scr Mat Min Mat Min Mat Fac Fac Fac Upp Upp War Pro Fac Upp Upp Res Peak Influence 989 | 40 168 331 234 295 140 496 352 390 . . . . 239 . . 989 Average Influence 259 | 24 92 216 169 207 102 220 237 293 . . . . 131 . . 427 Maximum Alert Level 3 | . . 1 1 1 . 2 1 1 . . . . 1 . . 3 Low Security (%) 43 | 100 100 42 59 17 100 54 19 18 . . . . 72 . . 17 Level 1 43 | . . 57 40 82 . 43 80 81 . . . . 27 . . 44 Level 2 5 | . . . . . . 1 . . . . . . . . . 14 Level 3 7 | . . . . . . . . . . . . . . . . 23 Level 4 . | . . . . . . . . . . . . . . . . . Level 5 . | . . . . . . . . . . . . . . . . . High Security . | . . . . . . . . . . . . . . . . . Max Security . | . . . . . . . . . . . . . . . . . Squads Dispatched 15 | . . . 1 . 1 3 . . . . . . 1 . . 9 Investigation . | . . . . . . . . . . . . . . . . . Extermination 3 | . . . . . . 2 . . . . . . . . . 1 Reinforcement 5 | . . . 1 . 1 1 . . . . . . 1 . . 1 Assault 3 | . . . . . . . . . . . . . . . . 3 Garrison 4 | . . . . . . . . . . . . . . . . 4 Intercept . | . . . . . . . . . . . . . . . . . Construction Impeded . | . . . . . . . . . . . . . . . . . Haulers Reinforced 2 | . . . . . . 1 . . . . . . 1 . . . Stealth | -11 -10 -10 -9 -9 -8 -7 -6 -5 -5 -5 -5 -4 -4 -4 -4 -3 --------- Run | Scr Mat Min Mat Min Mat Fac Fac Fac Upp Upp War Pro Fac Upp Upp Res Distress Signals 3 | . . . . . . . . . . . . . 1 . . 2 Communications Jammed 20 | . . . 5 . 7 1 . . . . 4 . . . . 3 Distress Signals 20 | . . . 5 . 7 1 . . . . 4 . . . . 3 Times Spotted 195 | . 5 8 6 6 3 9 7 4 11 4 19 26 5 13 2 67 Peak Tracking Total 10 | . 3 3 3 4 2 2 3 1 4 3 8 6 5 7 2 10 Tactical Retreats 4 | . . . . . . . . . . . 1 . . . . 3 Traps | -11 -10 -10 -9 -9 -8 -7 -6 -5 -5 -5 -5 -4 -4 -4 -4 -3 ------- Run | Scr Mat Min Mat Min Mat Fac Fac Fac Upp Upp War Pro Fac Upp Upp Res Traps Triggered 5 | . . . . . 1 1 . . . . . . 2 . . 1 Indirectly . | . . . . . . . . . . . . . . . . . Trap Hack Attempts . | . . . . . . . . . . . . . . . . . Triggered . | . . . . . . . . . . . . . . . . . Disarmed . | . . . . . . . . . . . . . . . . . Reprogrammed . | . . . . . . . . . . . . . . . . . Reused . | . . . . . . . . . . . . . . . . . Traps Extracted . | . . . . . . . . . . . . . . . . . Installed . | . . . . . . . . . . . . . . . . . Triggered 22 | . . . . . . . . . . 6 5 11 . . . . Machines | -11 -10 -10 -9 -9 -8 -7 -6 -5 -5 -5 -5 -4 -4 -4 -4 -3 ---------- Run | Scr Mat Min Mat Min Mat Fac Fac Fac Upp Upp War Pro Fac Upp Upp Res Machines Disabled 22 | . 1 1 1 . 1 2 . 1 1 2 2 1 4 1 . 4 Max in Single Turn 2 | . 1 1 . . . 1 . . . 1 . 1 2 1 . 1 Garrison Access 3 | . . . . . . . . . . . . . 1 . . 2 Machines Sabotaged . | . . . . . . . . . . . . . . . . . Garrisons Compromised . | . . . . . . . . . . . . . . . . . Overloaded Fab Kills . | . . . . . . . . . . . . . . . . . Fab Network Shutdowns . | . . . . . . . . . . . . . . . . . Hacking | -11 -10 -10 -9 -9 -8 -7 -6 -5 -5 -5 -5 -4 -4 -4 -4 -3 --------- Run | Scr Mat Min Mat Min Mat Fac Fac Fac Upp Upp War Pro Fac Upp Upp Res Machines Accessed 23 | . . . 1 . 2 3 2 . . 1 6 . 3 . . 5 Terminals 9 | . . . 1 . 1 2 1 . . 1 . . . . . 3 Fabricators 2 | . . . . . . 1 . . . . . . 1 . . . Repair Stations 1 | . . . . . . . . . . . . . . . . 1 Recycling Units 2 | . . . . . . . 1 . . . . . 1 . . . Scanalyzers 1 | . . . . . 1 . . . . . . . . . . . Garrison Access 2 | . . . . . . . . . . . . . 1 . . 1 Total Hacks 38 | . . . 2 . 7 7 5 . . 2 6 . 3 . . 6 Successful 21 | . . . . . 7 3 2 . . 2 6 . 1 . . . Failed 17 | . . . 2 . . 4 3 . . . . . 2 . . 6 Catastrophic 7 | . . . 1 . . 1 . . . . . . 2 . . 3 Database Lockouts . | . . . . . . . . . . . . . . . . . Manual 8 | . . . 2 . . 4 . . . . . 1 . . . 1 Terminals 17 | . . . 2 . 1 5 3 . . 2 . . . . . 4 Fabricators 3 | . . . . . . 2 . . . . . . 1 . . . Repair Stations 1 | . . . . . . . . . . . . . . . . 1 Recycling Units 3 | . . . . . . . 2 . . . . . 1 . . . Scanalyzers 6 | . . . . . 6 . . . . . . . . . . . Garrison Access 2 | . . . . . . . . . . . . . 1 . . 1 Terminal Hacks 10 | . . . . . 1 1 . . . 2 6 . . . . . Record 7 | . . . . . . . . . . 2 5 . . . . . Open Door 1 | . . . . . . . . . . . 1 . . . . . Level Access Points 1 | . . . . . . 1 . . . . . . . . . . Unreport Threat 1 | . . . . . 1 . . . . . . . . . . . Fabricator Hacks 2 | . . . . . . 2 . . . . . . . . . . Load Schematic 1 | . . . . . . 1 . . . . . . . . . . Build 1 | . . . . . . 1 . . . . . . . . . . Repair Station Hacks . | . . . . . . . . . . . . . . . . . Recycling Unit Hacks 2 | . . . . . . . 2 . . . . . . . . . Retrieve Matter 1 | . . . . . . . 1 . . . . . . . . . Retrieve Components 1 | . . . . . . . 1 . . . . . . . . . Scanalyzer 6 | . . . . . 6 . . . . . . . . . . . Insert Component 3 | . . . . . 3 . . . . . . . . . . . Analyze 3 | . . . . . 3 . . . . . . . . . . . Garrison Access Hacks 1 | . . . . . . . . . . . . . 1 . . . Seal Access 1 | . . . . . . . . . . . . . 1 . . . Unauthorized Hacks . | . . . . . . . . . . . . . . . . . Terminals . | . . . . . . . . . . . . . . . . . Fabricators . | . . . . . . . . . . . . . . . . . Repair Stations . | . . . . . . . . . . . . . . . . . Recycling Units . | . . . . . . . . . . . . . . . . . Scanalyzers . | . . . . . . . . . . . . . . . . . Garrison Access . | . . . . . . . . . . . . . . . . . Data Cores Recovered 3 | . . . . . . 1 . 1 . . . . . . . 1 Used 1 | . . . . . . 1 . . . . . . . . . . Hacking Detections 11 | . . . 1 . . 2 1 . . . . . 2 . . 5 Full Trace Events . | . . . . . . . . . . . . . . . . . Feedback Events . | . . . . . . . . . . . . . . . . . Feedback Blocked . | . . . . . . . . . . . . . . . . . Robot Schematics Acquired . | . . . . . . . . . . . . . . . . . Robots Built . | . . . . . . . . . . . . . . . . . Matter . | . . . . . . . . . . . . . . . . . Time . | . . . . . . . . . . . . . . . . . Total Robot Build Rating . | . . . . . . . . . . . . . . . . . Part Schematics Acquired 3 | . . . . . 3 . . . . . . . . . . . Parts Built 2 | . . . . . . 2 . . . . . . . . . . Matter 146 | . . . . . . 146 . . . . . . . . . . Time 36 | . . . . . . 36 . . . . . . . . . . Total Part Build Rating 6 | . . . . . . 6 . . . . . . . . . . Parts Repaired . | . . . . . . . . . . . . . . . . . Time . | . . . . . . . . . . . . . . . . . Parts Recycled . | . . . . . . . . . . . . . . . . . Recycled Matter . | . . . . . . . . . . . . . . . . . Retrieved Matter . | . . . . . . . . . . . . . . . . . Retrieved Components . | . . . . . . . . . . . . . . . . . Parts Scanalyzed 3 | . . . . . 3 . . . . . . . . . . . Part Schematics Acquired 3 | . . . . . 3 . . . . . . . . . . . Parts Damaged . | . . . . . . . . . . . . . . . . . Bothacking | -11 -10 -10 -9 -9 -8 -7 -6 -5 -5 -5 -5 -4 -4 -4 -4 -3 ------------ Run | Scr Mat Min Mat Min Mat Fac Fac Fac Upp Upp War Pro Fac Upp Upp Res Used RIF Installer . | . . . . . . . . . . . . . . . . . Robots Hacked . | . . . . . . . . . . . . . . . . . Non-combat . | . . . . . . . . . . . . . . . . . Combat . | . . . . . . . . . . . . . . . . . Robot Hacks Applied . | . . . . . . . . . . . . . . . . . Relay Couplers Released 1 | . . . . . . . . . . . . . . . . 1 Machine Destruction 1 | . . . . . . . . . . . . . . . . 1 Robots Rewired 12 | . . . . . . . . . 1 4 5 . . 2 . . Allies Hacked . | . . . . . . . . . . . . . . . . . Hacks Repelled . | . . . . . . . . . . . . . . . . . Allies | -11 -10 -10 -9 -9 -8 -7 -6 -5 -5 -5 -5 -4 -4 -4 -4 -3 -------- Run | Scr Mat Min Mat Min Mat Fac Fac Fac Upp Upp War Pro Fac Upp Upp Res Total Allies 20 | . 1 . . 4 . 3 . . 1 4 5 . . 2 . . Largest Group 6 | . 1 1 1 5 5 4 4 1 2 5 6 5 1 3 3 2 Highest-Rated Group 365 | . 56 57 62 133 138 177 179 100 127 189 365 317 136 215 215 187 Highest-Rated Ally 187 | . 56 57 62 62 68 84 88 100 101 107 114 123 136 138 138 187 Total Orders . | . . . . . . . . . . . . . . . . . Ally Attacks 346 | . 8 8 10 2 13 32 30 3 27 3 37 58 16 17 9 73 Total Damage 12820 | . 63 155 202 9 283 923 891 443 986 250 1721 2412 766 531 162 3023 Kills 103 | . 3 5 2 1 2 13 4 2 5 2 16 15 6 7 1 19 Allies Corrupted 4 | . . . . . . . . . . . 4 . . . . . Allies Melted . | . . . . . . . . . . . . . . . . . Intel | -11 -10 -10 -9 -9 -8 -7 -6 -5 -5 -5 -5 -4 -4 -4 -4 -3 ------- Run | Scr Mat Min Mat Min Mat Fac Fac Fac Upp Upp War Pro Fac Upp Upp Res Robot Analysis Total . | . . . . . . . . . . . . . . . . . Derelict Logs Recovered 9 | . . 2 . 1 . . . . 1 2 . 1 . 2 . . Drone Launches . | . . . . . . . . . . . . . . . . . Drone Recoveries . | . . . . . . . . . . . . . . . . . Decoded 0b10 Intel 15 | . . . . . . . . . . . . . . . . 15 Emergency Access 2 | . . . . . . . . . . . . . . . . 2 Items 10 | . . . . . . . . . . . . . . . . 10 Machines 2 | . . . . . . . . . . . . . . . . 2 Patrols 1 | . . . . . . . . . . . . . . . . 1 Exploration | -11 -10 -10 -9 -9 -8 -7 -6 -5 -5 -5 -5 -4 -4 -4 -4 -3 ------------- Run | Scr Mat Min Mat Min Mat Fac Fac Fac Upp Upp War Pro Fac Upp Upp Res Turns Passed 8229 | 242 93 166 234 211 197 945 346 200 568 511 991 1073 484 442 79 1447 Spaces Moved 4680 | 52 56 125 176 175 137 560 189 122 350 308 554 610 295 263 45 663 Core 6 | 4 . . . . . 1 . . . . . . . . . 1 Treads 507 | . . . . . . . . . . . . . . . . 507 Legs 487 | . . . . . . . . . . . . 369 115 . . 3 Wheels 3680 | 48 56 125 176 175 137 559 189 122 350 308 554 241 180 263 45 152 Hover . | . . . . . . . . . . . . . . . . . Flight . | . . . . . . . . . . . . . . . . . Fastest Speed 50 | 50 100 100 100 110 105 115 120 130 120 120 120 110 100 120 130 100 Average Speed 128 | 96 100 100 102 110 108 117 120 130 126 125 128 140 128 124 130 159 Slowest Speed 1300 | 100 100 100 110 110 110 1300 120 130 130 130 130 180 150 130 130 700 Overloaded Moves . | . . . . . . . . . . . . . . . . . Propulsion Burnouts . | . . . . . . . . . . . . . . . . . Robots Hopped . | . . . . . . . . . . . . . . . . . Cave-ins Triggered . | . . . . . . . . . . . . . . . . . Exploration Rate (%) 32 | 4 20 28 17 54 16 19 9 4 61 59 86 84 8 52 12 22 Regions Visited 16 Branch Regions 8 Pre-discovered Areas 2 | . . 1 . . . . . . . 1 . . . . . . Known Exits Taken 1 | . . . . . . 1 . . . . . . . . . . Unknown Exits Taken 15 | 1 1 1 1 1 1 . 1 1 1 1 1 1 1 1 1 . Scrap Searched 7 | . . 1 . 1 . . . . 2 1 . . . 2 . . Spaces Dug 36 | . . 34 . . . 2 . . . . . . . . . . Terrain Destroyed 348 | 5 . 56 29 34 26 36 5 . 15 14 6 51 42 15 12 2 Melee . | . . . . . . . . . . . . . . . . . Projectile 126 | . . . . . . 4 5 . 15 14 6 51 2 15 12 2 AOE 222 | 5 . 56 29 34 26 32 . . . . . . 40 . . . Actions | -11 -10 -10 -9 -9 -8 -7 -6 -5 -5 -5 -5 -4 -4 -4 -4 -3 --------- Run | Scr Mat Min Mat Min Mat Fac Fac Fac Upp Upp War Pro Fac Upp Upp Res Total 6341 | 206 89 153 222 189 172 776 284 158 428 411 789 747 383 347 56 931 Wait 796 | 116 24 11 23 7 15 129 56 16 38 28 171 44 21 17 3 77 Move 4664 | 51 55 124 175 174 136 559 188 121 349 307 553 609 294 262 44 663 Hop . | . . . . . . . . . . . . . . . . . Pick Up 148 | 9 . 3 8 2 4 23 8 6 5 2 5 9 17 5 2 40 Fast Attach 17 | 2 . . . . . . . . . . 1 5 5 2 . 2 Attach 115 | 5 . 1 5 1 4 13 8 5 5 . 1 8 15 4 1 39 Detach 9 | . . . 1 . 1 1 1 . . . . 1 1 . . 3 Swap 38 | . . 2 1 . 2 5 1 2 1 . 5 3 2 2 2 10 Drop 83 | . 4 2 3 1 2 16 5 4 1 . 6 10 10 3 . 16 Fire 316 | 23 6 10 5 4 8 30 17 4 26 12 20 45 17 14 4 71 Melee 7 | . . . . . . . . . . . . 7 . . . . Ram 5 | . . . 1 . . . . . . . . . 1 . . 3 Kick 6 | . . . . . . . . . . . . 6 . . . . Crush 7 | . . . . . . . . . . . . . . . . 7 Escape Stasis . | . . . . . . . . . . . . . . . . . Rewire 130 | . . . . . . . . . 3 62 27 . . 38 . . Trap . | . . . . . . . . . . . . . . . . . Miscellaneous . | . . . . . . . . . . . . . . . . . Route ------- -11/Scrapyard -10/Materials -10/Mines -9/Materials -9/Mines -8/Materials -7/Factory (discovered 4 exits: *Fac x4) -6/Factory -5/Factory -5/Upper Caves -5/Upper Caves -5/Warlord -4/Proximity Caves -4/Factory (discovered 2 exits: *Res / [*Upp]) -4/Upper Caves -4/Upper Caves -3/Research (discovered 1 exit: Qua) History --------- Turn | Location | Event 12 | -11/Scrapyard | Discovered new exit (range 15) 243 | -11/Scrapyard | Entered Materials 304 | -10/Materials | Build established: Mutant 319 | -10/Materials | Discovered new exit (range 9) 336 | -10/Materials | Entered Mines 336 | -10/Mines | Accompanied by 1 ally 353 | -10/Mines | Learned Materials trap positions 388 | -10/Mines | Received a Rocket Launcher from a helpful Derelict 479 | -10/Mines | Discovered new exit (range 10) 497 | -10/Mines | Learned location of Zion (-7) 502 | -10/Mines | Entered Materials 502 | -9/Materials | Accompanied by 1 ally 502 | -9/Materials | Evolved 2 slots: Utility x2 503 | -9/Materials | Loaded intel: 24 trap records 708 | -9/Materials | Discovered new exit (range 15) 736 | -9/Materials | Entered Mines 736 | -9/Mines | Accompanied by 1 ally 749 | -9/Mines | Met a Derelict bent on vengeance 793 | -9/Mines | Received a Mining Laser from a helpful Derelict 910 | -9/Mines | Discovered new exit (range 13) 928 | -9/Mines | Learned location of 1 exit from Lower Caves 929 | -9/Mines | Assisted by bots powering up and referring to "LRC-V3" 947 | -9/Mines | Entered Materials 947 | -8/Materials | Accompanied by 5 allies 947 | -8/Materials | Evolved 2 slots: Utility x1, Weapon x1 1135 | -8/Materials | Discovered new exit (range 4) 1144 | -8/Materials | Entered Factory 1144 | -7/Factory | Accompanied by 4 allies 1144 | -7/Factory | Evolved 2 slots: Power x1, Utility x1 1583 | -7/Factory | Fabricated Deuterium Engine (x2) 1868 | -7/Factory | Allied Derelicts emerged from ambush trap array 2049 | -7/Factory | Identified exit to Factory 2089 | -7/Factory | Entered another Factory area 2089 | -6/Factory | Accompanied by 4 allies 2089 | -6/Factory | Evolved 2 slots: Utility x2 2129 | -6/Factory | Spotted B-75 Beast 2150 | -6/Factory | Allies destroyed B-75 Beast 2422 | -6/Factory | Discovered new exit (range 8) 2435 | -6/Factory | Entered another Factory area 2435 | -5/Factory | Accompanied by 1 ally 2435 | -5/Factory | Evolved 2 slots: Power x1, Utility x1 2581 | -5/Factory | Discovered new exit (range 15) 2635 | -5/Factory | Entered Upper Caves 2635 | -5/Upper Caves | Accompanied by 1 ally 2789 | -5/Upper Caves | Attracted the attention of an 0b10 outpost 2811 | -5/Upper Caves | Build established: Scavenger-Tank 2850 | -5/Upper Caves | Learned Factory terminal intel 2995 | -5/Upper Caves | Spotted B-75 Beast 3042 | -5/Upper Caves | Destroyed B-75 Beast 3179 | -5/Upper Caves | Discovered new exit (range 8) 3190 | -5/Upper Caves | Build established: Tank 3203 | -5/Upper Caves | Entered another Upper Caves area 3203 | -5/Upper Caves | Accompanied by 1 ally 3331 | -5/Upper Caves | Learned Factory garrison access intel 3425 | -5/Upper Caves | Encountered a Warlord checkpoint 3458 | -5/Upper Caves | Attracted the attention of an 0b10 checkpoint 3517 | -5/Upper Caves | Learned location of Armory (-4) 3545 | -5/Upper Caves | Attacked by a delusional Derelict stockpiling Unaware 3680 | -5/Upper Caves | Discovered new exit (range 9) 3714 | -5/Upper Caves | Entered Warlord 3714 | -5/Warlord | Accompanied by 5 allies 4127 | -5/Warlord | Found Prototype Energy Gun 4273 | -5/Warlord | Warlord's base attacked by MAIN.C 4282 | -5/Warlord | Met Warlord 4472 | -5/Warlord | Build established: Commander-Tank 4602 | -5/Warlord | Warlord forces counterattacked 4606 | -5/Warlord | Spotted Striker 4616 | -5/Warlord | Allies destroyed Striker 4625 | -5/Warlord | Spotted Executioner 4631 | -5/Warlord | Allies destroyed Executioner 4644 | -5/Warlord | Found Prototype Device 4645 | -5/Warlord | Identified Adv. Kinecellerator 4665 | -5/Warlord | Discovered new exit (range 15) 4705 | -5/Warlord | Entered Proximity Caves 4705 | -4/Proximity Caves | Accompanied by 5 allies 4715 | -4/Proximity Caves | Attracted the attention of an 0b10 checkpoint 4979 | -4/Proximity Caves | Learned 4 Research zone layouts 4981 | -4/Proximity Caves | Spotted B-86 Titan 4992 | -4/Proximity Caves | Destroyed B-86 Titan 5120 | -4/Proximity Caves | Lost 4 parts (2p1u1w) 5301 | -4/Proximity Caves | Acquired the password to a Derelict Tinkerer's latest research 5321 | -4/Proximity Caves | Found Prototype Special Weapon 5322 | -4/Proximity Caves | Identified Molecular Deconstructor 5417 | -4/Proximity Caves | Core integrity fell below 50% 5423 | -4/Proximity Caves | Caught by Unaware searching for contraband prototypes 5437 | -4/Proximity Caves | P-70 Sage assimilated allied 4N-Y4J(c) 5529 | -4/Proximity Caves | Received a Behemoth hack from an annoying Tinkerer 5731 | -4/Proximity Caves | Build established: Scavenger-Mutant 5762 | -4/Proximity Caves | Discovered new exit (range 12) 5778 | -4/Proximity Caves | Entered Factory 5778 | -4/Factory | Accompanied by 1 ally 5778 | -4/Factory | Evolved 2 slots: Weapon x2 5779 | -4/Factory | Loaded intel: 22 terminal locations 5780 | -4/Factory | Loaded intel: 4 garrison access locations 5780 | -4/Factory | Identified Plasma Storm 6092 | -4/Factory | Lost 7 parts (3p1n3u) 6203 | -4/Factory | Discovered new exit (range 9) 6257 | -4/Factory | Discovered new exit (range 4) 6262 | -4/Factory | Entered Upper Caves 6262 | -4/Upper Caves | Accompanied by 1 ally 6375 | -4/Upper Caves | Attracted the attention of an 0b10 outpost 6508 | -4/Upper Caves | Build established: Scavenger-Gunner 6656 | -4/Upper Caves | Learned location of 1 exit from Proximity Caves 6660 | -4/Upper Caves | Discovered new exit (range 6) 6684 | -4/Upper Caves | Learned 8 Research zone layouts 6704 | -4/Upper Caves | Entered another Upper Caves area 6704 | -4/Upper Caves | Accompanied by 3 allies 6733 | -4/Upper Caves | Encountered a Warlord checkpoint 6749 | -4/Upper Caves | Discovered new exit (range 6) 6783 | -4/Upper Caves | Entered Research 6783 | -3/Research | Accompanied by 2 allies 6783 | -3/Research | Evolved 2 slots: Power x1, Propulsion x1 6784 | -3/Research | Identified exit to Quarantine 6858 | -3/Research | Garrison activated, responded to threat 6911 | -3/Research | Lost 9 parts (3p2n4w) 7613 | -3/Research | Build established: Generator-Gunner 7936 | -3/Research | Spotted B-86 Titan 7947 | -3/Research | Destroyed B-86 Titan 7961 | -3/Research | Build established: Scavenger-Gunner 8033 | -3/Research | First assault squad dispatched 8080 | -3/Research | Lost 5 parts (1p4w) 8195 | -3/Research | Core integrity fell below 50% 8227 | -3/Research | Core integrity fell below 20% 8230 | -3/Research | Core destroyed Last Messages --------------- 08222_ Med. Treads destroyed. 08222_ Lgt. Antimatter Reactor destroyed. 08223_ Acquired 21 matter. 08223_ Slug penetrates Door. 08223_ Slug penetrates Wall. 08223_ Wheel destroyed. 08225_ Acquired Hpw. Shotgun. 08225_ K-01 Serf collects debris. 08226_ Acquired 61 matter. 08226_ Wheel destroyed. 08228_ Slug penetrates Player 2. 08228_ R-10 Processor collects Flexi-carbon Leg. 08228_ Player 2 removes Lrg. Storage Unit. 08229_ K-01 Serf collects debris. 08229_ Player 2 drops Lrg. Storage Unit. 08229_ Slug penetrates Player 2. 08229_ Slug penetrates L-61 Swordsman. 08229_ O-16 Technician destroyed. 08229_ K-01 Serf collects debris. [Achievement: Tester] Map ----- +----------------------------------------------------+ | ????????????????????? # # ## | | ?????????????????????########## # ## | | ???*????????????????? #??# # ## " | | ????????????????????? ########+######+#### " | | ????????????????????? """# # " | | ????????????????????? """# # | | ????????????????????? """# + | | ????????????????????? # # " | | ????????????????????? # ###+######+##+# " | | ????????????????????? # # ## # " | | ?????????????????????+###### # ## # | | ????????????????????? # ## # | | ??????? ????????????? # ## #### | | ????? ???????????? # ## #??? | | ????"" ????????????????? ??????????????????? | | ????G ???????????????? #??????????????????? | | ?? "" ???????????????? #??????????????????? | | ?? ??????????????? #??????????????????? | | ? ???????????????R #??????????????????? | | ? ???##########? #??????????????????? | | ?? ???# #? #??????????????????? | | ???? ??# ## ##?????????????????? | | ??????# ??# |%#[ ! #???????????!?????? | | ??????# ?# g # [ !% #?????????????????? | | ??????# %##% ! @l[k!%* # #?????????? | | ??????# == / %#@*k| + #?????????? | | ??????# #####= % #!! # #?????????? | | ???????????????# # #????!????????????? | | ???????????????# % ### ###?????????????????? | | ???????????????#######"##??RR#???????????????????? | | ?????????????????????#%#???? #??????????????????? | | ?????????????????????# #???? #??????????????????? | | ]?????????????????#### #### #??????????????????? | | ??????????????????+ #??????????????????? | | ??????????????????#### +??????????????????# | | ?????????????????????# #### #??????????????????# | | ?????????????????????# ####+#??????????????????# | | ?????????????????????# # ] #??????????????????# | | ?????????????#???????# # #??????????????????# | | ?????????????? ?????#%=#[ ##########""" # | | ??????????????? ????#**+% #????????# # | | ???????????????"""???# =# [ #????????# # | | ???????????????""" ?##%[#########?###########+### | | ?????????????? """ #%=%= #?# | | ????????????????? +!== #?# | | ????????????????????# * #?# [ | | ????????????????????+ #?# "" | | ????????????????????####+### #?# """ | | ?????????????????????# # #?# "R """ | | ?????????????????????# # ### "" """ | +----------------------------------------------------+ Best States ------------- Heat Dissipation 103 Coolant Potential 120 Energy Generation 71 Energy Capacity 640 Matter Stores 500 Matter Capacity 500 Sight Range 22 Robot Scan Range 16 Terrain Scan Range 16 Terrain Scan Density 60 Jamming Range 8 Power Amplification 20 EM Shielding 4 Armor Coverage 225 Resistance: KI 20 Resistance: EM 25 Propulsion Shielding 66 Weapon Shielding 66 Weapon Cycling 15 Evasion (%) 40 Targeting Accuracy 5 Target Analysis 8 Core Analysis 6 Recoil Reduction 3 Kinecelleration 50 Defensive Hacking 12 Item Schematics ----------------- Imp. Weapon Shielding | -8/Materials | Scanalyzed Mining Laser | -8/Materials | Scanalyzed Deuterium Engine | -8/Materials | Scanalyzed Robot Schematics ------------------ None Fabricated ------------ Deuterium Engine | x2 | -7/Factory Alien Tech Used ----------------- None Achievements -------------- A Powerful Ally? Charge!!! No Signal Tester Challenges ------------ None Player 2 | -11 -10 -10 -9 -9 -8 -7 -6 -5 -5 -5 -5 -4 -4 -4 -4 -3 ---------- Run | Scr Mat Min Mat Min Mat Fac Fac Fac Upp Upp War Pro Fac Upp Upp Res Slots Evolved 14 | . . 2 . 2 2 2 2 . . . . 2 . . 2 . Power 1 | . . . . . . . . . . . . 1 . . . . Propulsion 5 | . . 1 . 1 . 2 1 . . . . . . . . . Utility 5 | . . . . . 1 . 1 . . . . 1 . . 2 . Weapon 3 | . . 1 . 1 1 . . . . . . . . . . . Parts Attached 133 | . 6 3 4 . 5 19 3 6 4 2 5 22 16 2 . 36 Parts Lost 56 | . . . . . . . . 1 6 . . 16 4 1 . 28 Damage Taken 8234 | . 14 79 . . 74 76 152 79 373 . 84 2567 408 202 72 4054 Core 1271 | . 14 15 . . 12 18 19 . 75 . . 299 . 26 . 793 Player 2/Cogmind (%) 50 | . 70 65 . . 100 23 25 . 31 . . 60 . 23 . 59 Absorbed by Shields 39 | . . . . . . . . . . . 26 13 . . . . Damage Inflicted 9185 | . 63 155 202 9 178 642 554 443 749 250 370 1215 766 493 127 2969 Player 2/Cogmind (%) 39 | . 55 39 48 2 46 38 47 70 39 35 35 42 46 32 46 38 Combat Hostiles Destroyed 66 | . 3 5 2 1 1 6 1 2 5 2 4 7 2 7 1 17 Player 2/Cogmind (%) 47 | . 75 62 100 14 50 60 25 66 41 50 66 38 66 53 50 41 Game ------ Seed ShadingAnalysisDesublimator Manual? 0 Play Time 02:42:42 Cumulative 57.8 hours Start 2020.06.03 @ 09:57:58 End 2020.06.03 @ 18:34:50 Sessions 4 Manual Loads 0 Difficulty Rogue Special Mode AFD2020/Player2 Game No. 55 Rogue 54 Adventurer 1 Explorer 0 Win Type - Total 0 Types 0/0/0/0/0/0/0 Lore% 27 Gallery% 50 Achievement% 36 Wizard Run 0 Options --------- ASCII 0 Keyboard 0 Movement Numpad Keybinds 0 Fullscreen 0 Font 16/Smallcaps Map View 76x50 Tactical HUD 1 Map Filters NONE Filters NONE Steam 1 RUN: a9d014d5-8efe-4eba-9047-e308c52e242c